[Event "*** Titled Tuesday Blitz"]
[Site "Chess.com"]
[Date "2020.05.05"]
[Round "5"]
[White "TigrVShlyape"]
[Black "vlad_Sid"]
[Result "1-0"]
[WhiteElo "2823"]
[BlackElo "2615"]
[TimeControl "180+1"]
[EndTime "10:58:49 PDT"]
[Termination "TigrVShlyape won by resignation"]

1. d4 {[%clk 0:03:00.9]} 1... Nf6 {[%clk 0:02:58.5]} 2. Nf3 {[%clk 0:02:58.8]}
2... d5 {[%clk 0:02:57.1]} 3. Bf4 {[%clk 0:02:57.5]} 3... c5 {[%clk 0:02:56]} 4.
e3 {[%clk 0:02:57.5]} 4... Nc6 {[%clk 0:02:54.3]} 5. Nbd2 {[%clk 0:02:56.6]}
5... Bf5 {[%clk 0:02:52.9]} 6. dxc5 {[%clk 0:02:52.2]} 6... e6 {[%clk
0:02:46.8]} 7. Nd4 {[%clk 0:02:51.4]} 7... Bg6 {[%clk 0:02:44.1]} 8. Bb5 {[%clk
0:02:49.7]} 8... Rc8 {[%clk 0:02:40.3]} 9. b4 {[%clk 0:02:49.3]} 9... Be7 {[%clk
0:02:26.5]} 10. Nxc6 {[%clk 0:02:48.5]} 10... bxc6 {[%clk 0:02:25.6]} 11. Ba6
{[%clk 0:02:49]} 11... O-O {[%clk 0:02:16.3]} 12. O-O {[%clk 0:02:39.5]} 12...
Ra8 {[%clk 0:02:11.7]} 13. h3 {[%clk 0:02:25.9]} 13... Nd7 {[%clk 0:02:11.1]}
14. Bb7 {[%clk 0:02:04.7]} 14... Rb8 {[%clk 0:02:10.5]} 15. Bxb8 {[%clk
0:01:59.8]} 15... Nxb8 {[%clk 0:02:11.4]} 16. Qe2 {[%clk 0:01:44.1]} 16... Bf6
{[%clk 0:02:06.8]} 17. Rac1 {[%clk 0:01:38.4]} 17... Bc3 {[%clk 0:02:05]} 18. a3
{[%clk 0:01:32.5]} 18... Bxd2 {[%clk 0:02:04.7]} 19. Qxd2 {[%clk 0:01:31.7]}
19... Qc7 {[%clk 0:02:05.2]} 20. Bxc6 {[%clk 0:01:28.9]} 20... Qxc6 {[%clk
0:02:03.3]} 21. c4 {[%clk 0:01:27.1]} 21... dxc4 {[%clk 0:01:55.6]} 22. Rxc4
{[%clk 0:01:26]} 22... Nd7 {[%clk 0:01:52.5]} 23. Rd4 {[%clk 0:01:23.8]} 23...
Nf6 {[%clk 0:01:44.7]} 24. Rd8 {[%clk 0:01:21.8]} 24... Nd5 {[%clk 0:01:42.1]}
25. Rxf8+ {[%clk 0:01:21.3]} 25... Kxf8 {[%clk 0:01:43]} 26. f3 {[%clk
0:01:18.1]} 26... f5 {[%clk 0:01:12.6]} 27. e4 {[%clk 0:01:11.9]} 27... Ne7
{[%clk 0:01:12.6]} 28. Qd6 {[%clk 0:01:01]} 28... Be8 {[%clk 0:01:08.9]} 29. Rd1
{[%clk 0:00:38.9]} 29... Kf7 {[%clk 0:01:01.8]} 30. exf5 {[%clk 0:00:37.8]}
30... exf5 {[%clk 0:00:57.6]} 31. Qe5 {[%clk 0:00:33.6]} 31... Qa4 {[%clk
0:00:49.6]} 32. Re1 {[%clk 0:00:32.4]} 32... Qd7 {[%clk 0:00:48.2]} 33. a4
{[%clk 0:00:20]} 33... a6 {[%clk 0:00:42.6]} 34. b5 {[%clk 0:00:19.4]} 34...
axb5 {[%clk 0:00:41]} 35. axb5 {[%clk 0:00:19.2]} 35... Ng6 {[%clk 0:00:41.9]}
36. Qe3 {[%clk 0:00:12.9]} 36... Qxb5 {[%clk 0:00:40.8]} 37. Qe6+ {[%clk
0:00:12.9]} 37... Kf8 {[%clk 0:00:41.1]} 38. Qxf5+ {[%clk 0:00:13.8]} 38... Kg8
{[%clk 0:00:29.8]} 39. Qd5+ {[%clk 0:00:12.7]} 39... Kf8 {[%clk 0:00:29.6]} 40.
Qd6+ {[%clk 0:00:12.1]} 40... Kf7 {[%clk 0:00:24]} 41. h4 {[%clk 0:00:11.5]}
41... Qc6 {[%clk 0:00:19.8]} 42. h5 {[%clk 0:00:10.9]} 42... Qxd6 {[%clk
0:00:17.3]} 43. cxd6 {[%clk 0:00:10.9]} 43... Nf4 {[%clk 0:00:17.8]} 44. Re7+
{[%clk 0:00:08.8]} 44... Kf8 {[%clk 0:00:18]} 45. h6 {[%clk 0:00:06]} 45... gxh6
{[%clk 0:00:16.3]} 46. Rxh7 {[%clk 0:00:06.2]} 46... Bb5 {[%clk 0:00:10]} 47.
Rxh6 {[%clk 0:00:04.5]} 47... Kf7 {[%clk 0:00:09]} 48. Kf2 {[%clk 0:00:04.1]}
48... Bd7 {[%clk 0:00:06.7]} 49. g3 {[%clk 0:00:04.1]} 49... Nd5 {[%clk
0:00:04.4]} 50. g4 {[%clk 0:00:03.5]} 50... Nf6 {[%clk 0:00:03.2]} 51. Kg3
{[%clk 0:00:03.4]} 51... Ng8 {[%clk 0:00:03.6]} 52. Rh2 {[%clk 0:00:02.1]} 52...
Ke6 {[%clk 0:00:03.8]} 53. Rd2 {[%clk 0:00:03]} 53... Nf6 {[%clk 0:00:04.2]} 54.
Kf4 {[%clk 0:00:02.1]} 54... Nd5+ {[%clk 0:00:03.8]} 55. Kg5 {[%clk 0:00:02.4]}
55... Kxd6 {[%clk 0:00:03.6]} 56. Rd4 {[%clk 0:00:02.6]} 56... Ke6 {[%clk
0:00:04]} 57. Rd1 {[%clk 0:00:03.3]} 57... Be8 {[%clk 0:00:03.5]} 58. f4 {[%clk
0:00:03.4]} 58... Ne7 {[%clk 0:00:03.5]} 59. f5+ {[%clk 0:00:04.3]} 59... Kf7
{[%clk 0:00:04]} 60. Rd6 {[%clk 0:00:04.6]} 60... Bb5 {[%clk 0:00:03.8]} 61. Kf4
{[%clk 0:00:04.9]} 61... Be2 {[%clk 0:00:02.9]} 62. g5 {[%clk 0:00:05.2]} 62...
Bb5 {[%clk 0:00:02.8]} 63. g6+ {[%clk 0:00:05.5]} 63... Ke8 {[%clk 0:00:02.7]}
64. Kg5 {[%clk 0:00:05.8]} 64... Ba4 {[%clk 0:00:02.2]} 65. f6 {[%clk 0:00:06]}
65... Nxg6 {[%clk 0:00:02.8]} 66. Kxg6 {[%clk 0:00:06]} 66... Bc2+ {[%clk
0:00:03.7]} 67. Kg7 {[%clk 0:00:05.9]} 67... Bb3 {[%clk 0:00:04.6]} 68. Rb6
{[%clk 0:00:06.1]} 1-0

[Event "*** Titled Tuesday Blitz"]
[Site "Chess.com"]
[Date "2020.05.05"]
[Round "5"]
[White "Jospem"]
[Black "SaySpade4VIP"]
[Result "1/2-1/2"]
[WhiteElo "2834"]
[BlackElo "2623"]
[TimeControl "180+1"]
[EndTime "10:58:49 PDT"]
[Termination "Game drawn by repetition"]

1. c4 {[%clk 0:02:54.8]} 1... e5 {[%clk 0:02:58.8]} 2. Nc3 {[%clk 0:02:54.6]}
2... Nc6 {[%clk 0:02:58.4]} 3. Nf3 {[%clk 0:02:55.2]} 3... Nf6 {[%clk
0:02:56.4]} 4. a3 {[%clk 0:02:55.6]} 4... Be7 {[%clk 0:02:48.3]} 5. e3 {[%clk
0:02:55.4]} 5... O-O {[%clk 0:02:46.8]} 6. Qc2 {[%clk 0:02:55.2]} 6... Re8
{[%clk 0:02:43.5]} 7. Be2 {[%clk 0:02:55.2]} 7... d5 {[%clk 0:02:40.7]} 8. cxd5
{[%clk 0:02:54.9]} 8... Nxd5 {[%clk 0:02:41.6]} 9. O-O {[%clk 0:02:55]} 9... a5
{[%clk 0:02:33.4]} 10. d3 {[%clk 0:02:46.7]} 10... Bg4 {[%clk 0:02:24.5]} 11.
Bd2 {[%clk 0:02:44.8]} 11... Qd6 {[%clk 0:02:19.3]} 12. Rac1 {[%clk 0:02:44.4]}
12... Rad8 {[%clk 0:02:09.8]} 13. Qb3 {[%clk 0:02:40.8]} 13... Nxc3 {[%clk
0:02:07.7]} 14. Bxc3 {[%clk 0:02:27.9]} 14... Bf6 {[%clk 0:01:42.3]} 15. Rfe1
{[%clk 0:02:05.4]} 15... Bc8 {[%clk 0:01:28.5]} 16. Nd2 {[%clk 0:01:58]} 16...
Qd5 {[%clk 0:01:24.6]} 17. Qc2 {[%clk 0:01:44]} 17... g6 {[%clk 0:01:07.1]} 18.
b4 {[%clk 0:01:39.9]} 18... axb4 {[%clk 0:01:02.7]} 19. axb4 {[%clk 0:01:40.8]}
19... Bg7 {[%clk 0:00:58.7]} 20. Qb1 {[%clk 0:01:38.4]} 20... h5 {[%clk
0:00:50.7]} 21. Ne4 {[%clk 0:01:06.7]} 21... b6 {[%clk 0:00:47.6]} 22. Bd2
{[%clk 0:01:01.2]} 22... Qd7 {[%clk 0:00:36.5]} 23. Qc2 {[%clk 0:00:55]} 23...
Bb7 {[%clk 0:00:36.5]} 24. Red1 {[%clk 0:00:48.3]} 24... Rc8 {[%clk 0:00:28.7]}
25. Bf3 {[%clk 0:00:43.3]} 25... Nd8 {[%clk 0:00:29]} 26. Bc3 {[%clk 0:00:38.8]}
26... Qb5 {[%clk 0:00:22.2]} 27. h3 {[%clk 0:00:29.6]} 27... Ra8 {[%clk
0:00:13.9]} 28. Be1 {[%clk 0:00:24.6]} 28... Rc8 {[%clk 0:00:13.4]} 29. Qb1
{[%clk 0:00:20.9]} 29... Ba8 {[%clk 0:00:09.1]} 30. Qa2 {[%clk 0:00:19.8]} 30...
Ne6 {[%clk 0:00:09]} 31. Qc4 {[%clk 0:00:13.6]} 31... Qd7 {[%clk 0:00:07.9]} 32.
Nd2 {[%clk 0:00:12.3]} 32... Bxf3 {[%clk 0:00:06.3]} 33. Nxf3 {[%clk 0:00:13.2]}
33... Red8 {[%clk 0:00:06.8]} 34. Bc3 {[%clk 0:00:13.5]} 34... Qd6 {[%clk
0:00:06.5]} 35. Qe4 {[%clk 0:00:13.1]} 35... Re8 {[%clk 0:00:03.8]} 36. Bxe5
{[%clk 0:00:12]} 36... Bxe5 {[%clk 0:00:03.2]} 37. Qxe5 {[%clk 0:00:12]} 37...
Qd8 {[%clk 0:00:03.4]} 38. Qc3 {[%clk 0:00:11.4]} 38... c5 {[%clk 0:00:03.5]}
39. bxc5 {[%clk 0:00:06.7]} 39... bxc5 {[%clk 0:00:04.4]} 40. Qc4 {[%clk
0:00:06.6]} 40... Qf6 {[%clk 0:00:03.1]} 41. Nd2 {[%clk 0:00:06.4]} 41... Rcd8
{[%clk 0:00:03]} 42. Ne4 {[%clk 0:00:06.9]} 42... Qe5 {[%clk 0:00:03.6]} 43.
Nxc5 {[%clk 0:00:06.8]} 43... Rc8 {[%clk 0:00:01.6]} 44. d4 {[%clk 0:00:07.4]}
44... Qg5 {[%clk 0:00:01.7]} 45. Qe2 {[%clk 0:00:03.2]} 45... Nxc5 {[%clk
0:00:01.9]} 46. dxc5 {[%clk 0:00:04]} 46... Rxc5 {[%clk 0:00:02.6]} 47. Rxc5
{[%clk 0:00:04.3]} 47... Qxc5 {[%clk 0:00:03.5]} 48. Qd3 {[%clk 0:00:05]} 48...
Qe7 {[%clk 0:00:04]} 49. Qd7 {[%clk 0:00:04.7]} 49... Qxd7 {[%clk 0:00:04.1]}
50. Rxd7 {[%clk 0:00:05.6]} 50... Kg7 {[%clk 0:00:04.5]} 51. g4 {[%clk
0:00:05.8]} 51... hxg4 {[%clk 0:00:04.5]} 52. hxg4 {[%clk 0:00:06.7]} 52... Re4
{[%clk 0:00:04.9]} 53. Rd4 {[%clk 0:00:05.2]} 53... Re6 {[%clk 0:00:05.2]} 54.
Kg2 {[%clk 0:00:05.3]} 54... Ra6 {[%clk 0:00:05.7]} 55. Kg3 {[%clk 0:00:05.7]}
55... Ra5 {[%clk 0:00:06.3]} 56. f4 {[%clk 0:00:05.5]} 56... Rb5 {[%clk
0:00:06.7]} 57. g5 {[%clk 0:00:05.7]} 57... Ra5 {[%clk 0:00:07.1]} 58. Rd7
{[%clk 0:00:05.8]} 58... Rb5 {[%clk 0:00:07.2]} 59. e4 {[%clk 0:00:05.8]} 59...
Rb3+ {[%clk 0:00:05.7]} 60. Kg4 {[%clk 0:00:06]} 60... Rb4 {[%clk 0:00:06.6]}
61. Kf3 {[%clk 0:00:04.9]} 61... Rb3+ {[%clk 0:00:06.7]} 62. Ke2 {[%clk
0:00:04.7]} 62... Rb4 {[%clk 0:00:07.6]} 63. Ke3 {[%clk 0:00:05.1]} 63... Rb3+
{[%clk 0:00:07.9]} 64. Rd3 {[%clk 0:00:05.7]} 64... Rb4 {[%clk 0:00:08.3]} 65.
Rc3 {[%clk 0:00:05.6]} 65... Ra4 {[%clk 0:00:08.4]} 66. Rc7 {[%clk 0:00:05.6]}
66... Ra3+ {[%clk 0:00:08.3]} 67. Kd4 {[%clk 0:00:06.1]} 67... Ra4+ {[%clk
0:00:09.2]} 68. Kd5 {[%clk 0:00:06.3]} 68... Ra5+ {[%clk 0:00:08.8]} 69. Kd6
{[%clk 0:00:06.5]} 69... Ra4 {[%clk 0:00:07.5]} 70. Kd5 {[%clk 0:00:06.3]} 70...
Ra5+ {[%clk 0:00:07.9]} 71. Rc5 {[%clk 0:00:06.9]} 71... Ra7 {[%clk 0:00:07]}
72. Ke5 {[%clk 0:00:06]} 72... Rb7 {[%clk 0:00:06.8]} 73. Rd5 {[%clk 0:00:05]}
73... Ra7 {[%clk 0:00:07]} 74. f5 {[%clk 0:00:03.3]} 74... gxf5 {[%clk
0:00:07.9]} 75. exf5 {[%clk 0:00:04.1]} 75... Ra1 {[%clk 0:00:06]} 76. Rd7
{[%clk 0:00:04.1]} 76... Re1+ {[%clk 0:00:05.9]} 77. Kf4 {[%clk 0:00:04]} 77...
Rf1+ {[%clk 0:00:06]} 78. Kg4 {[%clk 0:00:04.1]} 78... Rg1+ {[%clk 0:00:06.3]}
79. Kf4 {[%clk 0:00:04.6]} 79... Rf1+ {[%clk 0:00:06.7]} 80. Ke4 {[%clk
0:00:05.1]} 80... Re1+ {[%clk 0:00:06.3]} 81. Kf4 {[%clk 0:00:02.1]} 81... Rf1+
{[%clk 0:00:06.5]} 1/2-1/2

[Event "*** Titled Tuesday Blitz"]
[Site "Chess.com"]
[Date "2020.05.05"]
[Round "5"]
[White "MartinCerveny"]
[Black "kpio91"]
[Result "1-0"]
[WhiteElo "2598"]
[BlackElo "2749"]
[TimeControl "180+1"]
[EndTime "10:58:51 PDT"]
[Termination "MartinCerveny won on time"]

1. d4 {[%clk 0:03:00.9]} 1... Nf6 {[%clk 0:02:58.9]} 2. Nf3 {[%clk 0:02:58.2]}
2... g6 {[%clk 0:02:58.6]} 3. c4 {[%clk 0:02:57.8]} 3... Bg7 {[%clk 0:02:58.7]}
4. Nc3 {[%clk 0:02:58]} 4... O-O {[%clk 0:02:58.8]} 5. Bg5 {[%clk 0:02:57.3]}
5... d6 {[%clk 0:02:56]} 6. e3 {[%clk 0:02:57.4]} 6... c6 {[%clk 0:02:47.4]} 7.
Be2 {[%clk 0:02:55.4]} 7... Nbd7 {[%clk 0:02:46.6]} 8. O-O {[%clk 0:02:51.3]}
8... Qc7 {[%clk 0:02:45]} 9. a4 {[%clk 0:02:51]} 9... a5 {[%clk 0:02:43.8]} 10.
Qc2 {[%clk 0:02:47.3]} 10... e5 {[%clk 0:02:43.4]} 11. Rad1 {[%clk 0:02:46.7]}
11... Re8 {[%clk 0:02:41.2]} 12. Rfe1 {[%clk 0:02:45.3]} 12... Nf8 {[%clk
0:02:13.4]} 13. c5 {[%clk 0:02:27.7]} 13... exd4 {[%clk 0:02:11.8]} 14. cxd6
{[%clk 0:02:27.1]} 14... Qxd6 {[%clk 0:02:11.3]} 15. Rxd4 {[%clk 0:02:23.9]}
15... Qe7 {[%clk 0:02:06.8]} 16. Rd2 {[%clk 0:02:11.9]} 16... Ne6 {[%clk
0:02:01.4]} 17. Bh4 {[%clk 0:02:11.9]} 17... Nc5 {[%clk 0:02:01.1]} 18. Nd4
{[%clk 0:01:58.6]} 18... Qf8 {[%clk 0:01:54]} 19. Bf3 {[%clk 0:01:55.1]} 19...
Ng4 {[%clk 0:01:47.6]} 20. Bxg4 {[%clk 0:01:51.6]} 20... Bxg4 {[%clk 0:01:47.2]}
21. f3 {[%clk 0:01:45.4]} 21... Be6 {[%clk 0:01:37.6]} 22. Nxe6 {[%clk
0:01:39.9]} 22... Rxe6 {[%clk 0:01:36.2]} 23. e4 {[%clk 0:01:37.2]} 23... Rae8
{[%clk 0:01:26.6]} 24. Red1 {[%clk 0:01:35.2]} 24... Na6 {[%clk 0:01:05.7]} 25.
Rd8 {[%clk 0:01:28.9]} 25... Qb4 {[%clk 0:01:03]} 26. Rxe8+ {[%clk 0:01:25.3]}
26... Rxe8 {[%clk 0:01:03.9]} 27. Bf2 {[%clk 0:01:21.8]} 27... Qc4 {[%clk
0:00:53.6]} 28. Rd7 {[%clk 0:01:21.1]} 28... Nc5 {[%clk 0:00:48.3]} 29. Rd1
{[%clk 0:01:18.5]} 29... h5 {[%clk 0:00:45.4]} 30. g3 {[%clk 0:01:15.1]} 30...
Ne6 {[%clk 0:00:30.3]} 31. Kg2 {[%clk 0:01:06.7]} 31... h4 {[%clk 0:00:29.1]}
32. Rd7 {[%clk 0:01:01.1]} 32... hxg3 {[%clk 0:00:28.5]} 33. hxg3 {[%clk
0:01:00.6]} 33... Ng5 {[%clk 0:00:28.1]} 34. Qd2 {[%clk 0:00:56.7]} 34... Qe6
{[%clk 0:00:26.8]} 35. g4 {[%clk 0:00:50.7]} 35... Qf6 {[%clk 0:00:08.1]} 36.
Qe3 {[%clk 0:00:39.4]} 36... b5 {[%clk 0:00:07.8]} 37. Bg3 {[%clk 0:00:32.6]}
37... b4 {[%clk 0:00:07.1]} 38. Nd1 {[%clk 0:00:32.3]} 38... Qe6 {[%clk
0:00:06.9]} 39. Rd6 {[%clk 0:00:27.3]} 39... Qe7 {[%clk 0:00:04.9]} 40. b3
{[%clk 0:00:22.6]} 40... Ne6 {[%clk 0:00:04.9]} 41. Nf2 {[%clk 0:00:21.6]} 41...
c5 {[%clk 0:00:04.5]} 42. e5 {[%clk 0:00:21.5]} 42... c4 {[%clk 0:00:04.2]} 43.
bxc4 {[%clk 0:00:21]} 43... Qc7 {[%clk 0:00:03.8]} 44. f4 {[%clk 0:00:20.9]}
44... Qxc4 {[%clk 0:00:03.6]} 45. f5 {[%clk 0:00:21.1]} 45... gxf5 {[%clk
0:00:03.5]} 46. gxf5 {[%clk 0:00:22]} 46... Nc7 {[%clk 0:00:02.9]} 47. f6 {[%clk
0:00:21.6]} 47... Ne6 {[%clk 0:00:02.7]} 48. fxg7 {[%clk 0:00:20.9]} 48... b3
{[%clk 0:00:02.4]} 49. Rd1 {[%clk 0:00:20.2]} 49... Qc6+ {[%clk 0:00:02]} 50.
Qf3 {[%clk 0:00:19.3]} 50... Qxf3+ {[%clk 0:00:01.5]} 51. Kxf3 {[%clk
0:00:20.2]} 51... Rb8 {[%clk 0:00:01.9]} 52. Rb1 {[%clk 0:00:20.1]} 52... Kxg7
{[%clk 0:00:02.3]} 53. Nd3 {[%clk 0:00:20.2]} 53... Kg6 {[%clk 0:00:02.6]} 54.
Ke4 {[%clk 0:00:20.1]} 54... Ng5+ {[%clk 0:00:02.2]} 55. Kd4 {[%clk 0:00:19]}
55... Kf5 {[%clk 0:00:02.4]} 56. Bf2 {[%clk 0:00:18.2]} 56... Ne6+ {[%clk
0:00:02.4]} 57. Kc3 {[%clk 0:00:18.1]} 57... Rc8+ {[%clk 0:00:02.5]} 58. Kxb3
{[%clk 0:00:18.3]} 58... Ke4 {[%clk 0:00:03]} 59. Nb2 {[%clk 0:00:16.4]} 59...
Kxe5 {[%clk 0:00:02.3]} 60. Nc4+ {[%clk 0:00:16.4]} 60... Kd5 {[%clk 0:00:02.3]}
61. Nxa5 {[%clk 0:00:17.3]} 61... Rb8+ {[%clk 0:00:01.8]} 62. Kc2 {[%clk
0:00:17.6]} 62... Ra8 {[%clk 0:00:01.5]} 63. Rb5+ {[%clk 0:00:13.9]} 63... Ke4
{[%clk 0:00:01.8]} 64. Bb6 {[%clk 0:00:13.8]} 64... f5 {[%clk 0:00:01.7]} 65.
Kb3 {[%clk 0:00:14.7]} 65... f4 {[%clk 0:00:01.8]} 66. Kb4 {[%clk 0:00:15.6]}
66... f3 {[%clk 0:00:02.2]} 67. Nb3 {[%clk 0:00:13.7]} 67... Nf4 {[%clk
0:00:02.2]} 68. Nc5+ {[%clk 0:00:13.1]} 68... Kf5 {[%clk 0:00:01.9]} 69. Nd3+
{[%clk 0:00:12.7]} 69... Kg4 {[%clk 0:00:02.1]} 70. Nxf4 {[%clk 0:00:13.6]}
70... Kxf4 {[%clk 0:00:02.5]} 71. a5 {[%clk 0:00:14.5]} 71... Kg3 {[%clk
0:00:03]} 72. Rf5 {[%clk 0:00:14.1]} 72... Kg4 {[%clk 0:00:02.8]} 73. Rf7 {[%clk
0:00:13.9]} 73... Rc8 {[%clk 0:00:02.9]} 74. Kb5 {[%clk 0:00:13.8]} 74... Rc1
{[%clk 0:00:03.4]} 75. a6 {[%clk 0:00:13.8]} 75... Rb1+ {[%clk 0:00:03.8]} 76.
Kc6 {[%clk 0:00:13.8]} 76... Ra1 {[%clk 0:00:04.3]} 77. Kb7 {[%clk 0:00:13.6]}
1-0

[Event "*** Titled Tuesday Blitz"]
[Site "Chess.com"]
[Date "2020.05.05"]
[Round "5"]
[White "crazy_but_lazy"]
[Black "yamalchess"]
[Result "0-1"]
[WhiteElo "2366"]
[BlackElo "2551"]
[TimeControl "180+1"]
[EndTime "10:58:57 PDT"]
[Termination "yamalchess won by checkmate"]

1. d4 {[%clk 0:03:00.9]} 1... Nf6 {[%clk 0:02:59.2]} 2. c4 {[%clk 0:03:00.4]}
2... c5 {[%clk 0:02:59.7]} 3. Nf3 {[%clk 0:02:59.2]} 3... g6 {[%clk 0:02:58.5]}
4. g3 {[%clk 0:02:52.7]} 4... Bg7 {[%clk 0:02:58.6]} 5. Bg2 {[%clk 0:02:52.9]}
5... O-O {[%clk 0:02:59.1]} 6. O-O {[%clk 0:02:53.1]} 6... d6 {[%clk 0:02:59.2]}
7. b3 {[%clk 0:02:52.9]} 7... Nc6 {[%clk 0:02:58.7]} 8. Bb2 {[%clk 0:02:53]}
8... cxd4 {[%clk 0:02:54.8]} 9. Nxd4 {[%clk 0:02:53.9]} 9... Bd7 {[%clk
0:02:54.9]} 10. Nc3 {[%clk 0:02:46.1]} 10... Rc8 {[%clk 0:02:51.5]} 11. Rc1
{[%clk 0:02:42.2]} 11... a6 {[%clk 0:02:50.5]} 12. Qd2 {[%clk 0:02:23.5]} 12...
Nxd4 {[%clk 0:02:44.9]} 13. Qxd4 {[%clk 0:02:24.4]} 13... Bc6 {[%clk 0:02:41.6]}
14. Nd5 {[%clk 0:02:14.2]} 14... Nh5 {[%clk 0:02:36.2]} 15. Qd2 {[%clk
0:02:10.1]} 15... Bxb2 {[%clk 0:02:29.3]} 16. Qxb2 {[%clk 0:02:11]} 16... e6
{[%clk 0:02:29.5]} 17. Ne3 {[%clk 0:01:47.9]} 17... Qf6 {[%clk 0:02:23.4]} 18.
Qxf6 {[%clk 0:01:30.3]} 18... Nxf6 {[%clk 0:02:22.4]} 19. Rfd1 {[%clk
0:01:31.2]} 19... Rfd8 {[%clk 0:02:22.4]} 20. Rd3 {[%clk 0:01:26.1]} 20... Kf8
{[%clk 0:02:22.5]} 21. Rcd1 {[%clk 0:01:26]} 21... Ke7 {[%clk 0:02:22.6]} 22. g4
{[%clk 0:01:22.8]} 22... Bxg2 {[%clk 0:02:18.7]} 23. Kxg2 {[%clk 0:01:23.7]}
23... g5 {[%clk 0:02:14.3]} 24. h3 {[%clk 0:01:20.3]} 24... Ne4 {[%clk
0:02:10.6]} 25. Kf3 {[%clk 0:01:08]} 25... Nc5 {[%clk 0:02:09]} 26. R3d2 {[%clk
0:01:08.5]} 26... b5 {[%clk 0:02:07.1]} 27. cxb5 {[%clk 0:01:01.1]} 27... axb5
{[%clk 0:02:03.4]} 28. Nc2 {[%clk 0:01:01.7]} 28... d5 {[%clk 0:02:01]} 29. Nd4
{[%clk 0:00:56.6]} 29... Ne4 {[%clk 0:02:00.7]} 30. Rc2 {[%clk 0:00:46.2]} 30...
Rxc2 {[%clk 0:01:56.1]} 31. Nxc2 {[%clk 0:00:47.1]} 31... Rc8 {[%clk 0:01:55.9]}
32. Nb4 {[%clk 0:00:41.9]} 32... Rc3+ {[%clk 0:01:49.3]} 33. e3 {[%clk
0:00:39.4]} 33... Kd6 {[%clk 0:01:47.4]} 34. Ke2 {[%clk 0:00:19.8]} 34... Rc8
{[%clk 0:01:31]} 35. Ra1 {[%clk 0:00:16.5]} 35... e5 {[%clk 0:01:25]} 36. a4
{[%clk 0:00:12.7]} 36... bxa4 {[%clk 0:01:22.4]} 37. bxa4 {[%clk 0:00:13.6]}
37... Rb8 {[%clk 0:01:17.6]} 38. Nd3 {[%clk 0:00:11.3]} 38... Nc5 {[%clk
0:00:59]} 39. a5 {[%clk 0:00:08.2]} 39... Na6 {[%clk 0:00:54.3]} 40. f4 {[%clk
0:00:07]} 40... gxf4 {[%clk 0:00:51.1]} 41. exf4 {[%clk 0:00:07.3]} 41... f6
{[%clk 0:00:51]} 42. g5 {[%clk 0:00:06.7]} 42... e4 {[%clk 0:00:51.1]} 43. Nf2
{[%clk 0:00:04]} 43... fxg5 {[%clk 0:00:50.5]} 44. fxg5 {[%clk 0:00:04.9]} 44...
Ke5 {[%clk 0:00:50.7]} 45. h4 {[%clk 0:00:04.6]} 45... d4 {[%clk 0:00:49.8]} 46.
Ra2 {[%clk 0:00:04.1]} 46... Rb3 {[%clk 0:00:42.5]} 47. h5 {[%clk 0:00:03.3]}
47... Kf4 {[%clk 0:00:40.7]} 48. g6 {[%clk 0:00:03.6]} 48... hxg6 {[%clk
0:00:30.8]} 49. hxg6 {[%clk 0:00:04.5]} 49... Rg3 {[%clk 0:00:29.5]} 50. Rb2
{[%clk 0:00:05.1]} 50... d3+ {[%clk 0:00:26.3]} 51. Kf1 {[%clk 0:00:04.7]} 51...
Rxg6 {[%clk 0:00:25.9]} 52. Rb6 {[%clk 0:00:04.1]} 52... Rxb6 {[%clk 0:00:25.6]}
53. axb6 {[%clk 0:00:05]} 53... Ke3 {[%clk 0:00:20.9]} 54. b7 {[%clk 0:00:03.7]}
54... d2 {[%clk 0:00:19]} 55. Nd1+ {[%clk 0:00:03.5]} 55... Kd3 {[%clk
0:00:18.9]} 56. Kf2 {[%clk 0:00:04.1]} 56... Nb8 {[%clk 0:00:17.8]} 57. Ne3
{[%clk 0:00:03.4]} 57... Nc6 {[%clk 0:00:17.6]} 58. Nd1 {[%clk 0:00:02.4]} 58...
Kc2 {[%clk 0:00:17.4]} 59. Ke2 {[%clk 0:00:02.7]} 59... Kc1 {[%clk 0:00:16.4]}
60. Ne3 {[%clk 0:00:02.4]} 60... Nd4+ {[%clk 0:00:16.2]} 61. Kf2 {[%clk
0:00:02.6]} 61... Nc6 {[%clk 0:00:15.8]} 62. Ke2 {[%clk 0:00:03.2]} 62... Nd4+
{[%clk 0:00:15.4]} 63. Kf2 {[%clk 0:00:03.4]} 63... Nc2 {[%clk 0:00:15.4]} 64.
b8=Q {[%clk 0:00:03.1]} 64... Nxe3 {[%clk 0:00:15.5]} 65. Qc7+ {[%clk
0:00:03.4]} 65... Nc2 {[%clk 0:00:15.1]} 66. Qf4 {[%clk 0:00:01.2]} 66... e3+
{[%clk 0:00:14.6]} 67. Ke2 {[%clk 0:00:01.2]} 67... d1=Q# {[%clk 0:00:14.2]} 0-1